bitfinex-derivatives/quotes_BNBF0:USTF0_20250807
["timestamp","ask_amount","ask_price","bid_price","bid_amount"]
[1754597024061,0.85612043,781.6,780.92,0.8505961]
[1754597024258,0.85623244,781.59,780.93,0.8505961]
[1754597024461,0.85623244,781.58,780.89,1.078]
[1754597024657,0.85623244,781.57,780.89,1.078]
[1754597024859,0.85694095,781.56,780.89,1.078]
[1754597025064,0.85694095,781.55,780.89,1.078]
[1754597025263,0.85694095,781.54,780.89,1.078]
[1754597025559,0.85694095,781.53,780.89,1.078]
[1754597025760,0.85694095,781.52,780.89,1.078]
[1754597025963,0.85694095,781.51,780.89,1.078]
[1754597026163,0.85694095,781.5,780.89,1.078]
[1754597026360,0.85694095,781.49,780.89,1.078]
[1754597026564,0.85694095,781.48,780.89,1.078]
[1754597026765,0.85694095,781.47,780.89,1.078]
[1754597026961,0.85694095,781.46,780.89,1.078]
[1754597027165,0.85694095,781.45,780.89,1.078]
[1754597027365,1.129,781.63,780.89,1.078]
[1754597027562,0.85680893,781.62,780.89,1.078]
[1754597027765,0.85680893,781.61,780.89,1.078]
[1754597027962,0.85680893,781.6,780.89,1.078]
[1754597028263,0.85680893,781.59,780.89,1.9285961]
[1754597028461,1.129,781.63,780.89,1.9285961]
[1754597028462,0.85680893,781.58,780.91,0.8505961]
[1754597028662,0.85680893,781.57,780.91,0.8505961]
[1754597028866,0.85680893,781.56,780.91,0.8505961]
[1754597029162,0.85680893,781.55,780.91,0.8505961]
[1754597029364,0.85680893,781.54,780.9,0.8505961]
[1754597029562,0.85680893,781.53,780.9,0.8505961]
[1754597029766,0.85680893,781.52,780.9,0.8505961]
[1754597029961,1.129,781.63,780.9,0.8505961]
[1754597030266,0.85671605,781.62,780.9,0.8505961]
[1754597030569,0.85671605,781.61,780.89,0.8505961]
[1754597030763,0.85671605,781.6,780.89,0.8505961]
[1754597030964,0.85671605,781.59,780.89,0.8505961]
[1754597031266,0.85671605,781.58,780.89,0.8505961]
[1754597031465,1.129,781.63,780.87,0.8505961]
[1754597031967,1.129,781.63,780.88,0.8505961]
[1754597032167,1.129,781.63,781.03,0.8505961]
[1754597032864,1.129,781.63,781.04,1.14]
[1754597033164,1.129,781.63,781.04,1.9905961]
[1754597034071,1.129,781.63,781.05,0.8505961]
[1754597035370,1.129,781.63,781.06,0.8505961]
[1754597036468,1.129,781.63,781.05,0.8505961]
[1754597036672,1.129,781.63,781.06,0.8505961]
[1754597036870,1.129,781.63,781.04,1.14]
[1754597037068,0.85674122,781.62,781.04,1.14]
[1754597037268,0.85674122,781.61,781.04,1.14]
[1754597037470,0.85674122,781.6,781.04,1.14]
[1754597037771,0.85674122,781.59,781.04,1.14]
[1754597037966,1.129,781.63,781.04,1.14]
[1754597038172,0.85691613,781.62,781.04,1.14]
[1754597038372,0.85691613,781.61,781.04,1.14]
[1754597038568,0.85691613,781.6,781.04,1.14]
[1754597038769,0.85691613,781.59,781.04,1.14]
[1754597038971,1.129,781.63,781.04,1.14]
[1754597039268,0.85703002,781.62,781.04,1.14]
[1754597039469,0.85703002,781.61,781.04,1.14]
[1754597039668,0.85703002,781.6,781.04,1.14]
[1754597039972,0.85703002,781.59,781.04,1.14]
[1754597040174,1.129,781.63,781.04,1.14]
[1754597040470,0.85714966,781.62,781.04,1.14]
[1754597040668,0.85714966,781.61,781.04,1.14]
[1754597041072,0.85721534,781.6,781.04,1.14]
[1754597041270,0.85721534,781.59,781.04,1.14]
[1754597041470,0.85721534,781.58,781.04,1.14]
[1754597041669,0.85721534,781.57,781.04,1.14]
[1754597041874,0.85721534,781.56,781.04,1.14]
[1754597042071,0.85721534,781.55,781.04,1.14]
[1754597042270,0.85721534,781.54,781.04,1.14]
[1754597042469,0.85721534,781.53,781.04,1.14]
[1754597042673,0.85721534,781.52,781.04,1.14]
[1754597042874,0.85721534,781.51,781.04,1.14]
[1754597043071,0.85721534,781.5,781.04,1.14]
[1754597043270,0.85721534,781.49,781.04,1.14]
[1754597043474,0.85721534,781.48,781.04,1.14]
[1754597043676,1.129,781.63,781.04,1.14]
[1754597043972,0.85748652,781.62,781.04,1.14]
[1754597044171,1.129,781.63,781.04,1.14]
[1754597044172,0.85748652,781.61,781.04,1.14]
[1754597044474,0.85748652,781.6,781.04,1.14]
[1754597044671,0.85748652,781.59,781.04,1.14]
[1754597044875,0.85748652,781.58,781.04,1.14]
[1754597045076,0.85748652,781.57,781.04,1.14]
[1754597045276,0.85748652,781.56,781.04,1.14]
[1754597045473,0.85748652,781.55,781.04,1.14]
[1754597045775,0.85748652,781.54,781.04,1.14]
[1754597045973,0.85748652,781.53,781.04,1.14]
[1754597046275,0.85748652,781.52,781.04,1.14]
[1754597046477,0.85748652,781.51,781.04,1.14]
[1754597046673,0.85748652,781.5,781.04,1.14]
[1754597046872,0.85748652,781.49,781.04,1.14]
[1754597047076,0.85751879,781.48,781.04,1.14]
[1754597047373,1.129,781.63,781.04,1.14]
[1754597047573,0.85750088,781.62,781.04,1.14]
[1754597047777,0.85750088,781.61,781.04,1.14]
[1754597047980,0.85750088,781.6,781.04,1.14]
[1754597048180,0.85750088,781.59,781.04,1.14]
[1754597048376,0.85750088,781.58,781.04,1.14]
[1754597048580,0.85750088,781.57,781.04,1.14]
[1754597048777,0.85750088,781.56,781.04,1.14]
[1754597048982,0.85750088,781.55,781.04,1.14]
[1754597049280,0.85751134,781.54,781.04,1.14]
[1754597049480,0.85751134,781.53,781.04,1.14]
[1754597049779,0.85751134,781.52,781.04,1.14]
[1754597050078,0.85751134,781.51,781.04,1.14]
[1754597050281,0.85751134,781.5,781.04,1.14]
[1754597050481,0.85751134,781.49,781.04,1.14]
[1754597050778,0.85751134,781.48,781.04,1.14]
[1754597050981,1.129,781.63,781.04,1.14]
[1754597051179,0.85749452,781.62,781.04,1.14]
[1754597051377,0.85749452,781.61,781.04,1.14]
[1754597051577,0.85749452,781.6,781.04,1.14]
[1754597051778,0.85749452,781.59,781.04,1.14]
[1754597052077,0.85749452,781.58,781.04,1.14]
[1754597052378,0.85749452,781.57,781.04,1.14]
[1754597052581,0.85749452,781.56,781.04,1.14]
[1754597052780,0.85749452,781.55,781.04,1.14]
[1754597052980,0.85749452,781.54,781.04,1.14]
[1754597053178,0.85749452,781.53,781.04,1.14]
[1754597053381,0.85749452,781.52,781.04,1.14]
[1754597053580,0.85749452,781.51,781.04,1.14]
[1754597053778,0.85749452,781.5,781.04,1.14]
[1754597053981,0.85749452,781.49,781.04,1.14]
[1754597054180,0.85749452,781.48,781.04,1.14]
[1754597054380,0.85749452,781.47,781.04,1.14]
[1754597054680,0.85749452,781.46,781.04,1.14]
[1754597054880,0.85749452,781.45,781.04,1.14]
[1754597055079,0.85749452,781.44,781.04,1.14]
[1754597055282,0.85749452,781.43,781.04,1.14]
[1754597055484,1.129,781.63,781.04,1.14]
[1754597055682,0.85994513,781.62,781.04,1.14]
[1754597055884,0.85994513,781.61,781.04,1.14]
[1754597056085,0.85994513,781.6,781.04,1.14]
[1754597056286,0.85994513,781.59,781.04,1.14]
[1754597056585,0.85994513,781.58,781.04,1.14]
[1754597056786,0.85994513,781.57,781.04,1.14]
[1754597056983,0.85994513,781.56,781.04,1.14]
[1754597057182,0.85994513,781.55,781.04,1.14]
[1754597057383,0.85994513,781.54,781.04,1.14]
[1754597057587,0.85994513,781.53,781.04,1.14]
[1754597057886,0.85994513,781.52,781.04,1.14]
[1754597058087,0.85988346,781.51,781.04,1.14]
[1754597058285,0.85988346,781.5,781.04,1.14]
[1754597058588,0.85885438,781.56,781.04,1.14]
[1754597058787,0.85991051,781.55,780.88,0.8505961]
[1754597058987,0.85991051,781.54,780.88,0.8505961]
[1754597059289,0.85991051,781.53,780.88,0.8505961]
[1754597059489,0.85991051,781.52,780.88,0.8505961]
[1754597059784,0.85991051,781.51,780.88,0.8505961]
[1754597059984,0.85991051,781.5,780.88,0.8505961]
[1754597060187,0.85991051,781.49,780.88,0.8505961]
[1754597060389,0.85991051,781.48,780.87,0.8505961]
[1754597060582,0.85991051,781.47,780.87,0.8505961]
[1754597060783,0.85991051,781.46,780.87,0.8505961]
[1754597060987,0.85885438,781.56,780.87,0.8505961]
[1754597060988,0.85991051,781.45,780.87,0.8505961]
[1754597061186,0.85991051,781.44,780.87,0.8505961]
[1754597061386,0.85991051,781.43,780.88,1.6415961]
[1754597061584,0.85991051,781.42,780.88,0.791]
[1754597061883,0.85991051,781.41,780.88,0.791]
[1754597062085,0.85991051,781.4,780.88,0.791]
[1754597062290,0.85991051,781.39,780.88,1.6415961]
[1754597062583,0.85991051,781.38,780.88,1.6415961]
[1754597062786,0.85991051,781.37,780.88,1.6415961]
[1754597062985,0.85991051,781.36,780.88,0.791]
[1754597063289,0.85885438,781.6,780.88,0.791]
[1754597063485,0.85976907,781.59,780.88,0.791]
[1754597063688,0.85976907,781.58,780.88,0.791]
[1754597063988,0.85976907,781.57,780.88,0.791]
[1754597064186,0.85976907,781.56,780.88,0.791]
[1754597064386,0.85976907,781.55,780.88,0.791]
[1754597064586,0.85976907,781.54,780.88,0.791]
[1754597064788,0.85976907,781.53,780.88,0.791]
[1754597064985,0.85976907,781.52,780.88,0.791]
[1754597065186,1.71862345,781.51,780.88,0.791]
[1754597065385,0.85976907,781.5,780.88,0.791]
[1754597065589,0.85976907,781.49,780.88,0.791]
[1754597065787,0.85976907,781.48,780.88,0.791]
[1754597065985,0.85976907,781.47,780.88,0.791]
[1754597066188,1.71862345,781.46,780.88,0.791]
[1754597066388,0.22263664,781.99,780.88,0.791]
[1754597066389,1.71862345,781.45,780.88,0.791]
[1754597066585,0.85976907,781.44,780.88,0.791]
[1754597066886,0.85885438,781.45,780.88,0.791]
[1754597067090,1.71857235,781.44,780.88,0.791]
[1754597067385,0.85943268,781.43,780.88,0.791]
[1754597067585,0.85943268,781.42,780.88,0.791]
[1754597067888,0.85885438,781.45,780.88,0.791]
[1754597067889,1.78843268,781.41,780.88,0.791]
[1754597068086,0.85943268,781.4,780.88,0.791]
[1754597069784,0.929,781.41,780.88,0.791]
[1754597069989,0.85892508,781.4,780.88,0.791]
[1754597070285,0.85892508,781.39,780.88,0.791]
[1754597070488,0.85892508,781.38,780.88,0.791]
[1754597070690,0.85892508,781.37,780.88,0.791]
[1754597070891,0.85892508,781.36,780.88,0.791]
[1754597071188,0.929,781.41,780.88,0.791]
[1754597085405,0.929,781.41,780.78,0.8505961]
[1754597086406,0.929,781.41,780.77,0.8505961]
[1754597086605,0.929,781.41,780.76,0.8505961]
[1754597086905,0.929,781.41,780.77,0.8505961]
[1754597087102,0.929,781.41,780.76,0.8505961]
[1754597087408,0.929,781.41,780.77,0.8505961]
[1754597087706,0.929,781.41,780.78,0.879]
[1754597088403,0.8590776,781.4,780.78,0.879]
[1754597088603,0.929,781.41,780.78,0.879]
[1754597088803,0.85906765,781.4,780.78,0.879]
[1754597089006,0.929,781.41,780.78,0.879]
[1754597089206,0.85908058,781.4,780.78,0.879]
[1754597089406,0.85908058,781.39,780.78,0.879]
[1754597089703,0.929,781.41,780.78,0.879]
[1754597089902,0.85905728,781.4,780.78,0.879]
[1754597090106,0.85905728,781.39,780.78,0.879]
[1754597090403,0.85905542,781.38,780.78,0.879]
[1754597090606,0.85905542,781.37,780.78,0.879]
[1754597090802,0.85905542,781.36,780.78,0.879]
[1754597091002,0.85905542,781.35,780.78,0.879]
[1754597091203,0.85905091,781.34,780.78,0.879]
[1754597091404,0.85905091,781.33,780.78,0.879]
[1754597091707,0.929,781.41,780.78,0.879]
[1754597091708,0.85905091,781.32,780.78,0.879]
[1754597092008,0.85905091,781.31,780.78,0.879]
[1754597092209,0.85905091,781.3,780.78,0.879]
[1754597092405,0.85905091,781.29,780.78,0.879]
[1754597092605,0.85905091,781.28,780.78,0.879]
[1754597092808,0.85905091,781.27,780.78,0.879]
[1754597093011,0.85905091,781.26,780.78,0.879]
[1754597093209,0.85905091,781.25,780.78,0.879]
[1754597093508,0.85905091,781.24,780.78,0.879]
[1754597093910,0.85915959,781.23,780.78,0.879]
[1754597094106,0.85915959,781.22,780.78,0.879]
[1754597094307,1.78785438,781.41,780.78,0.879]
[1754597094506,0.85921469,781.4,780.78,0.879]
[1754597094707,0.85921469,781.39,780.78,0.879]
[1754597095009,0.85921469,781.38,780.78,0.879]
[1754597095210,0.85921469,781.37,780.78,0.879]
[1754597095512,0.85921469,781.36,780.78,0.879]
[1754597095812,0.85921469,781.35,780.78,0.879]
[1754597096006,0.85921469,781.34,780.78,0.879]
[1754597096210,1.78785438,781.41,780.78,0.879]
[1754597096211,0.85921469,781.33,780.78,0.879]
[1754597096509,0.85921469,781.32,780.78,0.879]
[1754597096706,0.85921469,781.31,780.78,0.879]
[1754597096909,0.85921469,781.3,780.78,0.879]
[1754597097209,0.85921469,781.29,780.78,0.879]
[1754597097412,0.85921469,781.28,780.78,0.879]
[1754597097706,0.85921469,781.27,780.78,0.879]
[1754597097909,0.85921469,781.26,780.78,0.879]
[1754597098109,0.85921469,781.25,780.78,0.879]
[1754597098308,0.85921469,781.24,780.78,0.879]
[1754597098510,0.85921469,781.23,780.78,0.879]
[1754597098709,0.85921469,781.22,780.78,0.879]
[1754597099009,0.85921469,781.21,780.78,0.879]
[1754597099208,0.85921469,781.2,780.78,0.879]
[1754597099407,0.85921469,781.19,780.78,0.879]
[1754597099712,0.85921469,781.18,780.78,0.879]
[1754597099908,0.85885438,781.4,780.78,0.879]
[1754597100213,0.85939042,781.39,780.78,0.879]
[1754597100507,0.85939042,781.38,780.78,0.879]
[1754597100711,0.85939042,781.37,780.78,0.879]
[1754597100911,0.85939042,781.36,780.78,0.879]
[1754597101112,0.85939042,781.35,780.78,0.879]
[1754597101308,0.85939042,781.34,780.78,0.879]
[1754597101507,0.85939042,781.33,780.78,0.879]
[1754597101711,0.85885438,781.4,780.78,0.879]
[1754597101912,0.85939605,781.39,780.78,0.879]
[1754597102112,1.78785438,781.41,780.78,0.879]
[1754597102113,0.85939605,781.38,780.78,0.879]
[1754597102315,0.85931102,781.37,780.78,0.879]
[1754597102613,0.85931102,781.36,780.78,0.879]
[1754597102811,0.85931102,781.35,780.78,0.879]
[1754597103014,0.85931102,781.34,780.78,0.879]
[1754597103215,0.85931102,781.33,780.78,0.879]
[1754597103414,0.85931102,781.32,780.78,0.879]
[1754597103611,0.85931102,781.31,780.78,0.879]
[1754597103815,0.85931102,781.3,780.78,0.879]
[1754597104016,0.85931102,781.29,780.78,0.879]
[1754597104315,0.929,781.41,780.78,0.879]
[1754597104316,0.85931102,781.28,780.78,0.879]
[1754597104515,0.85931102,781.27,780.78,0.879]
[1754597104711,0.929,781.41,780.78,0.879]
[1754597104712,0.85931102,781.26,780.78,0.879]
[1754597104915,0.85931102,781.25,780.78,0.879]
[1754597105113,0.85931102,781.24,780.78,0.879]
[1754597105311,0.85931102,781.23,780.78,0.879]
[1754597105518,0.85931102,781.22,780.78,0.879]
[1754597105718,0.85931102,781.21,780.78,0.879]
[1754597106013,0.85931102,781.2,780.78,0.879]
[1754597106217,0.85931102,781.19,780.78,0.879]
[1754597106517,0.85931102,781.18,780.78,0.879]
[1754597106717,0.85931102,781.17,780.78,0.879]
[1754597106912,0.85931102,781.16,780.78,0.879]
[1754597107118,0.86031672,781.39,780.78,0.879]
[1754597107318,0.85904532,781.38,780.78,0.879]
[1754597107518,0.85904532,781.37,780.78,0.879]
[1754597107719,0.85904532,781.36,780.78,0.879]
[1754597108019,0.85904532,781.35,780.78,0.879]
[1754597108214,0.85904532,781.34,780.78,0.879]
[1754597108414,0.85904532,781.33,780.78,0.879]
[1754597108714,0.85904532,781.32,780.78,0.879]
[1754597108919,0.85904532,781.31,780.78,0.879]
[1754597109122,0.85904532,781.3,780.78,0.879]
[1754597109420,0.85904532,781.29,780.78,0.879]
[1754597109614,0.85904532,781.28,780.78,0.879]
[1754597109814,0.85904532,781.27,780.78,0.879]
[1754597110013,0.85904532,781.26,780.78,0.879]
[1754597110219,0.85904532,781.25,780.78,0.879]
[1754597110415,1.157,781.33,780.78,0.879]
[1754597110715,0.8589749,781.32,780.78,0.879]
[1754597111019,0.8589749,781.31,780.78,0.879]
[1754597111217,0.85897333,781.3,780.78,0.879]
[1754597111418,0.85897333,781.29,780.78,0.879]
[1754597111616,1.157,781.33,780.78,0.879]
[1754597111816,0.8589247,781.32,780.78,0.879]
[1754597112019,0.8589247,781.31,780.78,0.879]
[1754597112219,1.157,781.33,780.78,0.879]
[1754597112414,0.85898023,781.32,780.78,0.879]
[1754597112716,0.85898023,781.31,780.78,0.879]
[1754597112915,1.157,781.33,780.78,0.879]
[1754597113119,0.85901614,781.32,780.78,0.879]
[1754597113319,0.85901614,781.31,780.78,0.879]
[1754597113518,0.85901614,781.3,780.78,0.879]
[1754597113720,1.157,781.33,780.78,0.879]
[1754597113917,0.85905814,781.32,780.78,0.879]
[1754597114120,0.85905814,781.31,780.78,0.879]
[1754597114317,0.85905814,781.3,780.78,0.879]
[1754597114521,0.85905814,781.29,780.78,0.879]
[1754597114823,1.157,781.33,780.66,0.85273583]
[1754597115020,0.86014744,781.32,780.66,0.85273583]
[1754597115224,0.86014744,781.31,780.66,0.85273583]
[1754597115419,0.86014744,781.3,780.66,0.85273583]
[1754597115620,1.157,781.33,780.67,0.85273583]
[1754597115821,0.86019446,781.32,780.67,0.85273583]
[1754597116020,0.86019446,781.31,780.67,0.85273583]
[1754597116225,0.86019446,781.3,780.67,0.85273583]
[1754597116424,1.157,781.33,780.67,0.85273583]
[1754597116721,0.86026423,781.32,780.67,0.85273583]
[1754597116922,1.157,781.33,780.68,0.85273583]
[1754597117122,1.157,781.33,780.69,0.85273583]
[1754597117323,1.157,781.33,780.75,0.85273583]
[1754597117526,1.157,781.33,780.76,0.85273583]
[1754597117826,1.157,781.33,780.86,0.85273583]
[1754597118428,1.157,781.33,780.85,0.85273583]
[1754597119827,1.157,781.33,780.86,0.85273583]
[1754597120827,1.157,781.33,780.81,0.85273583]
[1754597121030,1.157,781.33,780.69,1.031]
[1754597121031,1.157,781.33,780.76,0.85273583]
[1754597121232,1.157,781.33,780.72,0.85273583]
[1754597121527,1.157,781.33,780.69,1.88373583]
[1754597122533,1.157,781.33,780.7,0.85273583]
[1754597122733,1.157,781.33,780.69,1.88373583]
[1754597123231,1.157,781.33,780.7,0.85273583]
[1754597123432,1.157,781.33,780.69,1.88373583]
[1754597123635,1.157,781.33,780.69,1.031]
[1754597124835,1.157,781.33,780.69,1.88373583]
[1754597129740,1.157,781.33,780.69,1.031]
[1754597131041,1.157,781.33,780.7,0.85273583]
[1754597131439,1.157,781.33,780.69,1.031]
[1754597131740,1.157,781.33,780.7,0.85309361]
[1754597133145,1.157,781.33,780.71,0.85309361]
[1754597133541,1.157,781.33,780.7,0.85309361]
[1754597134343,1.157,781.33,780.71,0.85309361]
[1754597135545,1.157,781.33,780.78,0.85309361]
[1754597135745,1.157,781.33,780.77,0.85309361]
[1754597136346,1.157,781.33,780.76,0.85309361]
[1754597136746,1.157,781.33,780.77,0.85309361]
[1754597138345,1.157,781.33,780.69,1.031]
[1754597138346,1.157,781.33,780.78,0.85309361]
[1754597139645,1.157,781.33,780.77,0.85309361]
[1754597140546,1.157,781.33,780.86,0.85309361]
[1754597140751,0.2227143,781.73,780.86,0.85309361]
[1754597140949,0.86050615,781.72,780.87,0.85309361]
[1754597141151,0.86050615,781.71,780.87,0.85309361]
[1754597141349,0.86050615,781.7,780.86,0.85309361]
[1754597141550,0.86050615,781.69,780.88,0.85309361]
[1754597141753,0.86050615,781.68,780.88,0.85309361]
[1754597141953,0.86050615,781.67,780.88,0.85309361]
[1754597142153,0.86050615,781.66,780.92,0.85309361]
[1754597142450,0.86050615,781.65,780.91,0.85309361]
[1754597142654,0.86050615,781.64,780.97,0.85309361]
[1754597142955,0.86050615,781.63,780.94,0.85309361]
[1754597143152,0.86050615,781.62,780.94,0.85309361]
[1754597143352,0.86050615,781.61,780.93,0.85309361]
[1754597143554,0.86050615,781.6,780.93,0.85309361]
[1754597143752,0.701,781.63,780.93,0.85309361]
[1754597144455,0.701,781.63,780.94,0.992]
[1754597152362,0.701,781.63,780.97,0.85110336]
[1754597153163,0.701,781.63,780.98,0.85110336]
[1754597155163,0.701,781.63,780.94,0.992]
[1754597155164,0.701,781.63,780.97,0.85110336]
[1754597155362,0.701,781.63,780.96,0.85110336]
[1754597155566,0.701,781.63,780.97,0.85110336]
[1754597156367,0.701,781.63,780.96,0.85110336]
[1754597156970,0.701,781.63,780.94,0.992]
[1754597162272,0.22267155,781.8,780.94,0.992]
[1754597162476,0.85750585,781.79,780.94,0.992]
[1754597162673,0.85750585,781.78,780.94,0.992]
[1754597162971,0.85750585,781.77,780.94,0.992]
[1754597163171,0.85750585,781.76,780.94,0.992]
[1754597163471,0.85913452,781.74,780.94,0.992]
[1754597163670,0.85913452,781.71,780.94,0.992]
[1754597163872,0.85757611,781.7,780.94,0.992]
[1754597164273,1.149,781.69,780.94,0.992]
[1754597168576,0.85913452,781.65,780.94,0.992]
[1754597168775,0.85913452,781.64,780.94,0.992]
[1754597168979,0.85913452,781.65,780.94,0.992]
[1754597169478,0.85913452,781.64,780.6,0.85110336]
[1754597170379,0.85913452,781.66,780.6,0.85110336]
[1754597170575,0.85913452,781.66,780.59,0.85110336]
[1754597170875,0.85913452,781.67,780.59,0.85110336]
[1754597171779,0.85913452,781.66,780.59,0.85110336]
[1754597172080,0.85913452,781.66,780.6,1.142]
[1754597172279,0.85913452,781.67,780.6,1.99310336]
[1754597172775,0.85913452,781.66,780.6,1.99310336]
[1754597173381,0.85913452,781.65,780.6,1.99310336]
[1754597173881,0.85913452,781.64,780.62,0.85110336]
[1754597174177,0.85913452,781.63,780.61,0.85110336]
[1754597174374,0.85913452,781.65,780.61,0.85110336]
[1754597175180,1.149,781.69,780.6,1.142]
[1754597175181,0.85993928,781.64,780.62,0.85110336]
[1754597175377,0.85993928,781.63,780.63,0.85110336]
[1754597175677,0.85993928,781.62,780.63,0.85110336]
[1754597175882,0.85993928,781.61,780.64,0.85110336]
[1754597176181,0.85993928,781.6,780.64,0.85110336]
[1754597176478,0.85993928,781.59,780.65,0.85152022]
[1754597176679,0.85993928,781.58,780.78,0.85152022]
[1754597176879,0.85993928,781.57,780.79,0.85152022]
[1754597177077,0.85993928,781.56,780.8,0.85152022]
[1754597177278,0.85993928,781.55,780.8,0.85152022]
[1754597177480,1.149,781.69,780.81,0.85152022]
[1754597177481,0.85993928,781.54,780.81,0.85152022]
[1754597177684,0.85993928,781.53,780.81,0.85152022]
[1754597177884,0.85993928,781.52,780.81,0.85152022]
[1754597178084,0.85993928,781.51,780.81,0.85152022]
[1754597178287,0.85993928,781.5,780.81,0.85152022]
[1754597178485,0.86019829,781.49,780.81,0.85152022]
[1754597178787,0.86019829,781.48,780.81,0.85152022]
[1754597179088,0.86019829,781.47,780.81,0.85152022]
[1754597179286,0.86019829,781.46,780.81,0.85152022]
[1754597179585,0.86019829,781.45,780.81,0.85152022]
[1754597179783,0.86019829,781.44,780.81,0.85152022]
[1754597179984,0.86019829,781.43,780.81,0.85152022]
[1754597180191,0.86019829,781.42,780.81,0.85152022]
[1754597180386,0.86019829,781.41,780.81,0.85152022]
[1754597180584,0.86019829,781.4,780.81,0.85152022]
[1754597180783,0.86019829,781.39,780.81,0.85152022]
[1754597180987,0.85961158,781.77,780.81,0.85152022]
[1754597181186,0.8600793,781.76,780.81,0.85152022]
[1754597181384,0.806,781.76,780.81,0.85152022]
[1754597181585,0.86004137,781.75,780.81,0.85152022]
[1754597181785,0.86004137,781.74,780.81,0.85152022]
[1754597181988,0.86004137,781.73,780.81,0.85152022]
[1754597182285,0.86004137,781.72,780.81,0.85152022]
[1754597182488,0.86004137,781.71,780.81,0.85152022]
[1754597182689,0.86004137,781.7,780.81,0.85152022]
[1754597182893,0.86004137,781.69,780.81,0.85152022]
[1754597183083,0.86004137,781.68,780.81,0.85152022]
[1754597183284,0.86004137,781.67,780.84,0.85152022]
[1754597183484,0.86004137,781.66,780.84,0.85152022]
[1754597183790,0.86004137,781.65,780.89,0.85152022]
[1754597183990,0.86004137,781.64,780.89,0.85152022]
[1754597184192,0.86004137,781.63,780.9,0.85152022]
[1754597184392,0.86004137,781.62,780.94,0.85152022]
[1754597184593,0.806,781.76,780.94,0.85152022]
[1754597184793,0.86007967,781.75,780.94,0.85152022]
[1754597184993,0.86007967,781.74,780.94,0.85152022]
[1754597185193,0.86007967,781.73,780.94,0.85152022]
[1754597185491,0.86007967,781.72,780.94,0.85152022]
[1754597185693,0.86007967,781.71,780.94,0.85152022]
[1754597185892,0.86007967,781.7,780.94,0.85152022]
[1754597186093,0.86007967,781.69,780.94,0.85152022]
[1754597186290,0.86007967,781.68,780.94,0.85152022]
[1754597186591,0.86007967,781.67,780.94,0.85152022]
[1754597186791,0.86007967,781.66,780.94,0.85152022]
[1754597186992,0.86007967,781.65,780.94,0.85152022]
[1754597187292,0.86007967,781.64,780.94,0.85152022]
[1754597187493,0.86007967,781.63,780.95,0.85152022]
[1754597187691,0.806,781.76,780.95,0.85152022]
[1754597187889,0.86026514,781.75,780.95,0.85152022]
[1754597188091,0.86026514,781.74,780.95,0.85152022]
[1754597188291,0.86026514,781.73,780.93,0.85152022]
[1754597188493,0.86026514,781.72,780.93,0.85152022]
[1754597188795,0.86026514,781.71,780.93,0.85152022]
[1754597189095,0.86026514,781.7,780.94,0.85152022]
[1754597189297,0.86026514,781.69,780.94,0.85152022]
[1754597189494,0.86026514,781.68,780.94,0.85152022]
[1754597189696,0.86026514,781.67,780.94,0.85152022]
[1754597189896,0.86026514,781.66,780.94,0.85152022]
[1754597190094,0.86026514,781.65,780.94,0.85152022]
[1754597190398,0.86026514,781.75,780.94,0.85152022]
[1754597190598,0.86049815,781.74,780.94,0.85152022]
[1754597190800,0.86049815,781.73,780.94,0.85152022]
[1754597190994,0.806,781.76,780.94,0.85152022]
[1754597191200,0.86052007,781.75,780.94,0.85152022]
[1754597191498,0.86052007,781.74,780.94,0.85152022]
[1754597191698,0.806,781.76,780.94,0.85152022]
[1754597191699,0.86052007,781.73,780.94,0.85152022]
[1754597191900,0.86052007,781.72,780.91,0.85152022]
[1754597192098,0.85104061,781.71,780.91,0.85152022]
[1754597192300,0.806,781.76,780.91,0.85152022]